[Event "Titled Tuesday Blitz April 18 Early 2023"]
[White "Antonova, Nadezhda"]
[Black "Wisniacki, Flavio"]
[WhiteFideId "14700182"]
[BlackFideId "119229"]
[WhiteElo "1765"]
[BlackElo "2150"]
[Result "0-1"]
[Round "06"]
[TimeControl "180+2"]
[Date "2023.04.18"]
[WhiteClock "0:00:01"]
[BlackClock "0:00:05"]

1. Nf3 {[%clk 0:02:59]}  Nf6 {[%clk 0:02:59]} 2. b3 {[%clk 0:03:00]}  d5 {[%clk 0:02:58]} 3. Bb2 {[%clk 0:03:01]}  Bf5 {[%clk 0:02:58]} 4. g3 {[%clk 0:03:01]}  e6 {[%clk 0:02:59]} 5. Bg2 {[%clk 0:03:01]}  Be7 {[%clk 0:02:58]} 6. O-O {[%clk 0:03:02]}  h6 {[%clk 0:02:58]} 7. d3 {[%clk 0:03:03]}  c6 {[%clk 0:02:58]} 8. Nbd2 {[%clk 0:03:04]}  O-O {[%clk 0:02:58]} 9. c4 {[%clk 0:03:04]}  Nbd7 {[%clk 0:02:58]} 10. Qc2 {[%clk 0:03:04]}  a5 {[%clk 0:02:59]} 11. a3 {[%clk 0:03:04]}  Bh7 {[%clk 0:02:58]} 12. Ne5 {[%clk 0:03:04]}  Nxe5 {[%clk 0:02:57]} 13. Bxe5 {[%clk 0:03:05]}  Nd7 {[%clk 0:02:58]} 14. Bc3 {[%clk 0:03:06]}  Bf6 {[%clk 0:02:59]} 15. b4 {[%clk 0:03:06]}  Bxc3 {[%clk 0:02:55]} 16. Qxc3 {[%clk 0:03:07]}  Qf6 {[%clk 0:02:56]} 17. Qxf6 {[%clk 0:03:07]}  Nxf6 {[%clk 0:02:56]} 18. Nb3 {[%clk 0:03:05]}  axb4 {[%clk 0:02:54]} 19. axb4 {[%clk 0:03:04]}  Rfb8 {[%clk 0:02:50]} 20. c5 {[%clk 0:03:02]}  Kf8 {[%clk 0:02:43]} 21. Na5 {[%clk 0:02:56]}  Ke7 {[%clk 0:02:37]} 22. Ra3 {[%clk 0:02:48]}  Kd7 {[%clk 0:01:50]} 23. Rfa1 {[%clk 0:02:48]}  Kc7 {[%clk 0:01:49]} 24. Bf1 {[%clk 0:02:24]}  e5 {[%clk 0:01:36]} 25. e3 {[%clk 0:02:23]}  Nd7 {[%clk 0:01:32]} 26. Bh3 {[%clk 0:02:00]}  Nf8 {[%clk 0:01:23]} 27. Kf1 {[%clk 0:01:54]}  g5 {[%clk 0:01:19]} 28. Ke2 {[%clk 0:01:51]}  h5 {[%clk 0:01:19]} 29. Bg2 {[%clk 0:01:35]}  Bf5 {[%clk 0:01:17]} 30. e4 {[%clk 0:01:27]}  dxe4 {[%clk 0:01:10]} 31. dxe4 {[%clk 0:01:26]}  Be6 {[%clk 0:01:09]} 32. Ke3 {[%clk 0:01:21]}  Nd7 {[%clk 0:01:07]} 33. Bf1 {[%clk 0:01:07]}  Nf8 {[%clk 0:01:04]} 34. Be2 {[%clk 0:01:03]}  g4 {[%clk 0:00:55]} 35. Nc4 {[%clk 0:00:52]}  Rxa3+ {[%clk 0:00:51]} 36. Rxa3 {[%clk 0:00:53]}  Bxc4 {[%clk 0:00:44]} 37. Bxc4 {[%clk 0:00:54]}  f6 {[%clk 0:00:45]} 38. Bf7 {[%clk 0:00:44]}  Kd8 {[%clk 0:00:41]} 39. Bxh5 {[%clk 0:00:43]}  Ne6 {[%clk 0:00:41]} 40. Bxg4 {[%clk 0:00:41]}  Nd4 {[%clk 0:00:41]} 41. Bd1 {[%clk 0:00:39]}  Kc7 {[%clk 0:00:41]} 42. h4 {[%clk 0:00:39]}  Rh8 {[%clk 0:00:39]} 43. Rd3 {[%clk 0:00:30]}  b6 {[%clk 0:00:35]} 44. f4 {[%clk 0:00:25]}  bxc5 {[%clk 0:00:34]} 45. bxc5 {[%clk 0:00:24]}  Rb8 {[%clk 0:00:32]} 46. f5 {[%clk 0:00:17]}  Rb2 {[%clk 0:00:31]} 47. h5 {[%clk 0:00:16]}  Rh2 {[%clk 0:00:30]} 48. Bf3 {[%clk 0:00:11]}  Kd8 {[%clk 0:00:19]} 49. Rxd4+ {[%clk 0:00:11]}  exd4+ {[%clk 0:00:18]} 50. Kxd4 {[%clk 0:00:12]}  Ke7 {[%clk 0:00:18]} 51. e5 {[%clk 0:00:10]}  Rd2+ {[%clk 0:00:15]} 52. Ke3 {[%clk 0:00:10]}  Rc2 {[%clk 0:00:15]} 53. exf6+ {[%clk 0:00:10]}  Kxf6 {[%clk 0:00:15]} 54. g4 {[%clk 0:00:10]}  Rxc5 {[%clk 0:00:14]} 55. Kf4 {[%clk 0:00:11]}  Rc4+ {[%clk 0:00:14]} 56. Kg3 {[%clk 0:00:11]}  Kg5 {[%clk 0:00:14]} 57. Kf2 {[%clk 0:00:09]}  c5 {[%clk 0:00:13]} 58. Be2 {[%clk 0:00:08]}  Rf4+ {[%clk 0:00:10]} 59. Ke3 {[%clk 0:00:08]}  c4 {[%clk 0:00:09]} 60. Kd2 {[%clk 0:00:06]}  Re4 {[%clk 0:00:06]} 61. Bd1 {[%clk 0:00:04]}  Rd4+ {[%clk 0:00:05]} 62. Kc2 {[%clk 0:00:04]}  c3 {[%clk 0:00:05]} 63. Bf3 {[%clk 0:00:03]}  Rf4 {[%clk 0:00:04]} 64. Bd1 {[%clk 0:00:03]}  Rf1 {[%clk 0:00:04]} 65. Be2 {[%clk 0:00:03]}  Rf2 {[%clk 0:00:04]} 66. Kd3 {[%clk 0:00:01]}  c2 {[%clk 0:00:05]} 67. Ke3 {[%clk 0:00:01]}  Rxe2+ {[%clk 0:00:05]} 68. Kxe2 {[%clk 0:00:01]}  c1=Q {[%clk 0:00:05]} 0-1


[Site "https://www.chess.com"]

[Event "Titled Tuesday Blitz April 18 Early 2023"]
[White "Jovic, Stanoje"]
[Black "Karthik Sai Ch"]
[WhiteFideId "905020"]
[BlackFideId "46649484"]
[WhiteElo "2236"]
[BlackElo "2003"]
[Result "1-0"]
[Round "06"]
[TimeControl "180+2"]
[Date "2023.04.18"]
[WhiteClock "0:01:25"]
[BlackClock "0:01:16"]

1. c4 {[%clk 0:02:57]}  c6 {[%clk 0:02:59]} 2. e4 {[%clk 0:02:56]}  d5 {[%clk 0:02:59]} 3. exd5 {[%clk 0:02:57]}  cxd5 {[%clk 0:02:59]} 4. cxd5 {[%clk 0:02:58]}  Nf6 {[%clk 0:03:00]} 5. Qa4+ {[%clk 0:02:58]}  Bd7 {[%clk 0:02:59]} 6. Qb3 {[%clk 0:02:58]}  Qb6 {[%clk 0:02:53]} 7. Bc4 {[%clk 0:02:54]}  g6 {[%clk 0:02:51]} 8. Nc3 {[%clk 0:02:53]}  Bg7 {[%clk 0:02:51]} 9. d3 {[%clk 0:02:52]}  O-O {[%clk 0:02:51]} 10. Be3 {[%clk 0:02:52]}  Qxb3 {[%clk 0:02:49]} 11. axb3 {[%clk 0:02:46]}  Bf5 {[%clk 0:02:44]} 12. Nge2 {[%clk 0:02:38]}  Nbd7 {[%clk 0:02:43]} 13. Rxa7 {[%clk 0:02:31]}  Rxa7 {[%clk 0:02:40]} 14. Bxa7 {[%clk 0:02:31]}  Ra8 {[%clk 0:02:39]} 15. Be3 {[%clk 0:02:30]}  Ra1+ {[%clk 0:02:37]} 16. Bc1 {[%clk 0:02:28]}  Nb6 {[%clk 0:02:31]} 17. O-O {[%clk 0:02:26]}  Nxc4 {[%clk 0:02:25]} 18. dxc4 {[%clk 0:02:25]}  Bc2 {[%clk 0:02:19]} 19. Nd4 {[%clk 0:02:16]}  Bd3 {[%clk 0:02:18]} 20. Rd1 {[%clk 0:02:14]}  Nxd5 {[%clk 0:02:02]} 21. cxd5 {[%clk 0:01:51]}  Bxd4 {[%clk 0:02:01]} 22. Rxd3 {[%clk 0:01:48]}  Rxc1+ {[%clk 0:02:00]} 23. Rd1 {[%clk 0:01:48]}  Rxd1+ {[%clk 0:01:58]} 24. Nxd1 {[%clk 0:01:48]}  Kg7 {[%clk 0:01:58]} 25. Kf1 {[%clk 0:01:47]}  Kf6 {[%clk 0:01:58]} 26. Ke2 {[%clk 0:01:47]}  Ke5 {[%clk 0:01:58]} 27. Kd3 {[%clk 0:01:47]}  Kxd5 {[%clk 0:01:58]} 28. Nc3+ {[%clk 0:01:43]}  Bxc3 {[%clk 0:01:42]} 29. bxc3 {[%clk 0:01:43]}  b5 {[%clk 0:01:42]} 30. c4+ {[%clk 0:01:34]}  bxc4+ {[%clk 0:01:41]} 31. bxc4+ {[%clk 0:01:34]}  Kc5 {[%clk 0:01:41]} 32. f4 {[%clk 0:01:34]}  f6 {[%clk 0:01:37]} 33. g4 {[%clk 0:01:28]}  h5 {[%clk 0:01:26]} 34. f5 {[%clk 0:01:26]}  gxf5 {[%clk 0:01:16]} 35. gxh5 {[%clk 0:01:24]}  f4 {[%clk 0:01:16]} 36. h6 {[%clk 0:01:24]}  f3 {[%clk 0:01:17]} 37. h7 {[%clk 0:01:25]}  f2 {[%clk 0:01:16]} 38. Ke2 {[%clk 0:01:25]} 1-0


[Site "https://www.chess.com"]

[Event "Titled Tuesday Blitz April 18 Early 2023"]
[White "Jaivardhan Raj"]
[Black "Szyszylo, Rafal"]
[WhiteFideId "25744437"]
[BlackFideId "1109626"]
[WhiteElo "1772"]
[BlackElo "1951"]
[Result "1-0"]
[Round "06"]
[TimeControl "180+2"]
[Date "2023.04.18"]
[WhiteClock "0:00:21"]
[BlackClock "0:00:47"]

1. e4 {[%clk 0:02:54]}  g6 {[%clk 0:03:00]} 2. d4 {[%clk 0:02:54]}  d6 {[%clk 0:03:00]} 3. Nf3 {[%clk 0:02:55]}  Nf6 {[%clk 0:03:00]} 4. Nc3 {[%clk 0:02:56]}  Bg7 {[%clk 0:03:00]} 5. Bf4 {[%clk 0:02:56]}  c6 {[%clk 0:03:00]} 6. Qd2 {[%clk 0:02:56]}  h5 {[%clk 0:03:00]} 7. Bd3 {[%clk 0:02:54]}  b5 {[%clk 0:03:00]} 8. O-O {[%clk 0:02:52]}  Bg4 {[%clk 0:02:41]} 9. Ng5 {[%clk 0:02:45]}  Qb6 {[%clk 0:02:22]} 10. Be3 {[%clk 0:02:40]}  Qc7 {[%clk 0:02:17]} 11. a4 {[%clk 0:02:29]}  b4 {[%clk 0:02:16]} 12. Ne2 {[%clk 0:02:27]}  a5 {[%clk 0:02:17]} 13. Bc4 {[%clk 0:02:26]}  O-O {[%clk 0:02:16]} 14. h3 {[%clk 0:02:23]}  Bxe2 {[%clk 0:02:14]} 15. Qxe2 {[%clk 0:02:23]}  d5 {[%clk 0:02:02]} 16. exd5 {[%clk 0:02:17]}  cxd5 {[%clk 0:02:02]} 17. Bd3 {[%clk 0:02:16]}  Nc6 {[%clk 0:01:58]} 18. Nf3 {[%clk 0:02:10]}  Rfe8 {[%clk 0:01:50]} 19. Qd2 {[%clk 0:02:09]}  e5 {[%clk 0:01:49]} 20. dxe5 {[%clk 0:02:02]}  Nxe5 {[%clk 0:01:50]} 21. Nxe5 {[%clk 0:01:58]}  Qxe5 {[%clk 0:01:51]} 22. c3 {[%clk 0:01:56]}  bxc3 {[%clk 0:01:48]} 23. bxc3 {[%clk 0:01:56]}  Ne4 {[%clk 0:01:46]} 24. Bxe4 {[%clk 0:01:55]}  Qxe4 {[%clk 0:01:42]} 25. Bd4 {[%clk 0:01:44]}  Bxd4 {[%clk 0:01:34]} 26. cxd4 {[%clk 0:01:44]}  Qe2 {[%clk 0:01:26]} 27. Rfd1 {[%clk 0:01:30]}  Re4 {[%clk 0:01:24]} 28. Qc3 {[%clk 0:01:23]}  Rf4 {[%clk 0:01:05]} 29. Qg3 {[%clk 0:01:17]}  Qe4 {[%clk 0:00:51]} 30. Ra3 {[%clk 0:00:58]}  Rc8 {[%clk 0:00:51]} 31. Re3 {[%clk 0:00:53]}  Qf5 {[%clk 0:00:50]} 32. Re5 {[%clk 0:00:50]}  Qf6 {[%clk 0:00:50]} 33. Rxd5 {[%clk 0:00:46]}  Rc4 {[%clk 0:00:48]} 34. Rxa5 {[%clk 0:00:37]}  Rfxd4 {[%clk 0:00:48]} 35. Ra8+ {[%clk 0:00:34]}  Kg7 {[%clk 0:00:48]} 36. Rxd4 {[%clk 0:00:29]}  Qxd4 {[%clk 0:00:49]} 37. Qb8 {[%clk 0:00:24]}  Rxa4 {[%clk 0:00:47]} 38. Qh8# {[%clk 0:00:21]} 1-0


[Site "https://www.chess.com"]

[Event "Titled Tuesday Blitz April 18 Early 2023"]
[White "Flis, Pawel"]
[Black "DeyanKostov"]
[WhiteFideId "1112864"]
[WhiteElo "1822"]
[BlackElo "2336"]
[Result "1/2-1/2"]
[Round "06"]
[TimeControl "180+2"]
[Date "2023.04.18"]
[WhiteClock "0:00:17"]
[BlackClock "0:00:28"]

1. e4 {[%clk 0:03:00]}  c5 {[%clk 0:02:59]} 2. Nf3 {[%clk 0:03:00]}  d6 {[%clk 0:02:59]} 3. d4 {[%clk 0:03:00]}  Nf6 {[%clk 0:03:00]} 4. Nc3 {[%clk 0:02:58]}  cxd4 {[%clk 0:03:00]} 5. Nxd4 {[%clk 0:02:59]}  Nc6 {[%clk 0:03:01]} 6. f3 {[%clk 0:02:56]}  e5 {[%clk 0:03:01]} 7. Nb3 {[%clk 0:02:55]}  Be7 {[%clk 0:03:01]} 8. Nd5 {[%clk 0:02:49]}  Nxd5 {[%clk 0:02:57]} 9. exd5 {[%clk 0:02:50]}  Nb8 {[%clk 0:02:57]} 10. c4 {[%clk 0:02:49]}  O-O {[%clk 0:02:57]} 11. Be2 {[%clk 0:02:43]}  f5 {[%clk 0:02:57]} 12. O-O {[%clk 0:02:43]}  Nd7 {[%clk 0:02:53]} 13. f4 {[%clk 0:02:38]}  Bf6 {[%clk 0:02:49]} 14. Be3 {[%clk 0:02:31]}  exf4 {[%clk 0:02:48]} 15. Bxf4 {[%clk 0:02:24]}  Ne5 {[%clk 0:02:46]} 16. Kh1 {[%clk 0:02:18]}  Ng6 {[%clk 0:02:45]} 17. Bc1 {[%clk 0:02:10]}  Be5 {[%clk 0:02:44]} 18. Qe1 {[%clk 0:02:04]}  Bd7 {[%clk 0:02:34]} 19. Rb1 {[%clk 0:02:03]}  Qe7 {[%clk 0:02:33]} 20. Bh5 {[%clk 0:01:52]}  Rae8 {[%clk 0:02:27]} 21. Bd2 {[%clk 0:01:48]}  b6 {[%clk 0:02:23]} 22. Bc3 {[%clk 0:01:46]}  Qg5 {[%clk 0:02:21]} 23. Bxg6 {[%clk 0:01:29]}  hxg6 {[%clk 0:02:21]} 24. Bxe5 {[%clk 0:01:24]}  Rxe5 {[%clk 0:02:21]} 25. Qf2 {[%clk 0:01:17]}  Rfe8 {[%clk 0:02:10]} 26. Rbe1 {[%clk 0:01:14]}  Qe7 {[%clk 0:01:58]} 27. Rxe5 {[%clk 0:01:10]}  Qxe5 {[%clk 0:01:59]} 28. h3 {[%clk 0:01:07]}  g5 {[%clk 0:01:53]} 29. Nd4 {[%clk 0:01:04]}  f4 {[%clk 0:01:47]} 30. Nc6 {[%clk 0:00:59]}  Bxc6 {[%clk 0:01:43]} 31. dxc6 {[%clk 0:01:00]}  Qe4 {[%clk 0:01:35]} 32. Qf3 {[%clk 0:00:54]}  Qxf3 {[%clk 0:01:35]} 33. Rxf3 {[%clk 0:00:51]}  Rc8 {[%clk 0:01:33]} 34. Rd3 {[%clk 0:00:40]}  Rxc6 {[%clk 0:01:33]} 35. b3 {[%clk 0:00:40]}  Kf7 {[%clk 0:01:32]} 36. Rd5 {[%clk 0:00:40]}  Kf6 {[%clk 0:01:31]} 37. Kg1 {[%clk 0:00:40]}  a5 {[%clk 0:01:15]} 38. Kf2 {[%clk 0:00:40]}  a4 {[%clk 0:01:15]} 39. Kf3 {[%clk 0:00:40]}  axb3 {[%clk 0:01:14]} 40. axb3 {[%clk 0:00:40]}  g6 {[%clk 0:01:10]} 41. Kg4 {[%clk 0:00:39]}  b5 {[%clk 0:00:49]} 42. Rxb5 {[%clk 0:00:39]}  Rc5 {[%clk 0:00:46]} 43. Rb6 {[%clk 0:00:31]}  Ke5 {[%clk 0:00:46]} 44. Kxg5 {[%clk 0:00:29]}  Ke4+ {[%clk 0:00:41]} 45. Kg4 {[%clk 0:00:28]}  d5 {[%clk 0:00:38]} 46. cxd5 {[%clk 0:00:26]}  Rxd5 {[%clk 0:00:39]} 47. Rb4+ {[%clk 0:00:26]}  Ke3 {[%clk 0:00:37]} 48. Rxf4 {[%clk 0:00:25]}  Rb5 {[%clk 0:00:34]} 49. Rf3+ {[%clk 0:00:23]}  Ke4 {[%clk 0:00:34]} 50. Rc3 {[%clk 0:00:23]}  Ke5 {[%clk 0:00:28]} 51. g3 {[%clk 0:00:22]}  Kf6 {[%clk 0:00:28]} 52. h4 {[%clk 0:00:21]}  Kg7 {[%clk 0:00:28]} 53. Kf4 {[%clk 0:00:21]}  Kh6 {[%clk 0:00:28]} 54. g4 {[%clk 0:00:20]}  Rb4+ {[%clk 0:00:28]} 55. Kf3 {[%clk 0:00:20]}  Rb5 {[%clk 0:00:27]} 56. Ke3 {[%clk 0:00:20]}  Rb4 {[%clk 0:00:27]} 57. Kf3 {[%clk 0:00:20]}  Rb5 {[%clk 0:00:27]} 58. Kg3 {[%clk 0:00:20]}  Rb4 {[%clk 0:00:28]} 59. Kf3 {[%clk 0:00:17]} 1/2-1/2


[Site "https://www.chess.com"]

[Event "Titled Tuesday Blitz April 18 Early 2023"]
[White "Torres Dominguez, David"]
[Black "Zaichenko, Daria"]
[WhiteFideId "2220857"]
[BlackFideId "4197453"]
[WhiteElo "1999"]
[BlackElo "2039"]
[Result "1-0"]
[Round "06"]
[TimeControl "180+2"]
[Date "2023.04.18"]
[WhiteClock "0:01:42"]
[BlackClock "0:01:35"]

1. e4 {[%clk 0:03:00]}  c5 {[%clk 0:02:59]} 2. Nc3 {[%clk 0:02:59]}  Nc6 {[%clk 0:02:59]} 3. Bb5 {[%clk 0:03:00]}  Nd4 {[%clk 0:02:53]} 4. Bc4 {[%clk 0:03:00]}  g6 {[%clk 0:02:44]} 5. Nf3 {[%clk 0:03:00]}  Bg7 {[%clk 0:02:45]} 6. Nxd4 {[%clk 0:03:00]}  cxd4 {[%clk 0:02:44]} 7. Qf3 {[%clk 0:03:00]}  Nf6 {[%clk 0:02:39]} 8. e5 {[%clk 0:02:53]}  dxc3 {[%clk 0:02:35]} 9. exf6 {[%clk 0:02:53]}  Bxf6 {[%clk 0:02:35]} 10. dxc3 {[%clk 0:02:51]}  O-O {[%clk 0:02:34]} 11. Bh6 {[%clk 0:02:49]}  Bg7 {[%clk 0:02:32]} 12. Bxg7 {[%clk 0:02:48]}  Kxg7 {[%clk 0:02:32]} 13. O-O-O {[%clk 0:02:49]}  d6 {[%clk 0:02:28]} 14. h4 {[%clk 0:02:48]}  Qa5 {[%clk 0:02:27]} 15. h5 {[%clk 0:02:40]}  Bf5 {[%clk 0:02:23]} 16. Kb1 {[%clk 0:02:31]}  b5 {[%clk 0:02:21]} 17. Bd3 {[%clk 0:02:31]}  Bxd3 {[%clk 0:02:19]} 18. Rxd3 {[%clk 0:02:29]}  h6 {[%clk 0:02:15]} 19. hxg6 {[%clk 0:02:29]}  fxg6 {[%clk 0:02:14]} 20. Qe3 {[%clk 0:02:29]}  h5 {[%clk 0:02:07]} 21. Qxe7+ {[%clk 0:02:27]}  Rf7 {[%clk 0:02:08]} 22. Qxd6 {[%clk 0:02:27]}  Rxf2 {[%clk 0:02:07]} 23. Qd4+ {[%clk 0:02:17]}  Rf6 {[%clk 0:02:06]} 24. a3 {[%clk 0:01:50]}  Rf8 {[%clk 0:02:01]} 25. g4 {[%clk 0:01:45]}  hxg4 {[%clk 0:01:54]} 26. Qxg4 {[%clk 0:01:46]}  Rf1+ {[%clk 0:01:52]} 27. Rxf1 {[%clk 0:01:46]}  Rxf1+ {[%clk 0:01:52]} 28. Ka2 {[%clk 0:01:47]}  Rf7 {[%clk 0:01:51]} 29. Rd6 {[%clk 0:01:43]}  Rf6 {[%clk 0:01:35]} 30. Qd4 {[%clk 0:01:42]} 1-0


[Site "https://www.chess.com"]

[Event "Titled Tuesday Blitz April 18 Early 2023"]
[White "Larina, Maria"]
[Black "Kielinkei"]
[WhiteFideId "24113182"]
[WhiteElo "1848"]
[BlackElo "2445"]
[Result "0-1"]
[Round "06"]
[TimeControl "180+2"]
[Date "2023.04.18"]
[WhiteClock "0:00:02"]
[BlackClock "0:00:16"]

1. e4 {[%clk 0:03:00]}  c5 {[%clk 0:02:59]} 2. Nc3 {[%clk 0:03:00]}  a6 {[%clk 0:02:58]} 3. g3 {[%clk 0:03:00]}  b5 {[%clk 0:02:59]} 4. Bg2 {[%clk 0:03:00]}  Bb7 {[%clk 0:02:59]} 5. d3 {[%clk 0:02:59]}  e6 {[%clk 0:02:59]} 6. Nf3 {[%clk 0:02:53]}  d5 {[%clk 0:02:54]} 7. exd5 {[%clk 0:02:53]}  exd5 {[%clk 0:02:55]} 8. d4 {[%clk 0:02:48]}  Nf6 {[%clk 0:02:46]} 9. O-O {[%clk 0:02:40]}  b4 {[%clk 0:02:36]} 10. Re1+ {[%clk 0:02:36]}  Be7 {[%clk 0:02:35]} 11. Na4 {[%clk 0:02:29]}  c4 {[%clk 0:02:22]} 12. Nc5 {[%clk 0:02:19]}  Bc8 {[%clk 0:02:11]} 13. a3 {[%clk 0:02:14]}  bxa3 {[%clk 0:02:07]} 14. Rxa3 {[%clk 0:02:10]}  O-O {[%clk 0:02:07]} 15. Ne5 {[%clk 0:02:00]}  Ra7 {[%clk 0:01:44]} 16. Be3 {[%clk 0:01:17]}  Qb6 {[%clk 0:01:42]} 17. Ra2 {[%clk 0:00:56]}  Nc6 {[%clk 0:01:39]} 18. b3 {[%clk 0:00:45]}  cxb3 {[%clk 0:01:33]} 19. cxb3 {[%clk 0:00:40]}  h6 {[%clk 0:01:19]} 20. Na4 {[%clk 0:00:38]}  Qb7 {[%clk 0:01:10]} 21. Qc2 {[%clk 0:00:33]}  Nb4 {[%clk 0:01:05]} 22. Qd2 {[%clk 0:00:27]}  Nxa2 {[%clk 0:01:05]} 23. Qxa2 {[%clk 0:00:28]}  Bd7 {[%clk 0:00:59]} 24. Nc5 {[%clk 0:00:25]}  Bxc5 {[%clk 0:00:54]} 25. dxc5 {[%clk 0:00:26]}  Bc6 {[%clk 0:00:54]} 26. b4 {[%clk 0:00:24]}  Nd7 {[%clk 0:00:52]} 27. Nxd7 {[%clk 0:00:14]}  Qxd7 {[%clk 0:00:51]} 28. Rd1 {[%clk 0:00:14]}  Rd8 {[%clk 0:00:50]} 29. Bf4 {[%clk 0:00:14]}  d4 {[%clk 0:00:48]} 30. Bd6 {[%clk 0:00:13]}  Bxg2 {[%clk 0:00:47]} 31. Kxg2 {[%clk 0:00:14]}  Qc6+ {[%clk 0:00:47]} 32. Kg1 {[%clk 0:00:14]}  Rxd6 {[%clk 0:00:47]} 33. cxd6 {[%clk 0:00:13]}  Qxd6 {[%clk 0:00:48]} 34. Qb2 {[%clk 0:00:13]}  Rd7 {[%clk 0:00:47]} 35. Qa3 {[%clk 0:00:11]}  d3 {[%clk 0:00:47]} 36. Rd2 {[%clk 0:00:10]}  Rd8 {[%clk 0:00:33]} 37. Qc3 {[%clk 0:00:10]}  Qd5 {[%clk 0:00:32]} 38. Qc5 {[%clk 0:00:08]}  Qb3 {[%clk 0:00:27]} 39. Kg2 {[%clk 0:00:06]}  Rd5 {[%clk 0:00:22]} 40. Qc8+ {[%clk 0:00:06]}  Kh7 {[%clk 0:00:23]} 41. Qg4 {[%clk 0:00:05]}  g6 {[%clk 0:00:17]} 42. Qe4 {[%clk 0:00:05]}  Rd8 {[%clk 0:00:16]} 43. Qe7 {[%clk 0:00:05]}  Qd5+ {[%clk 0:00:16]} 44. Kg1 {[%clk 0:00:04]}  Rd7 {[%clk 0:00:17]} 45. Qe3 {[%clk 0:00:04]}  Kg7 {[%clk 0:00:17]} 46. f3 {[%clk 0:00:04]}  Kh7 {[%clk 0:00:16]} 47. Kf2 {[%clk 0:00:05]}  Qc4 {[%clk 0:00:17]} 48. Qe4 {[%clk 0:00:05]}  Qb5 {[%clk 0:00:14]} 49. Ke3 {[%clk 0:00:04]}  Qb6+ {[%clk 0:00:14]} 50. Kf4 {[%clk 0:00:03]}  Rd4 {[%clk 0:00:14]} 51. Rxd3 {[%clk 0:00:01]}  Rxe4+ {[%clk 0:00:15]} 52. fxe4 {[%clk 0:00:02]}  Qxb4 {[%clk 0:00:15]} 53. Rd7 {[%clk 0:00:02]}  Qb8+ {[%clk 0:00:15]} 54. e5 {[%clk 0:00:02]}  Kg7 {[%clk 0:00:15]} 55. Re7 {[%clk 0:00:02]}  Qb4+ {[%clk 0:00:15]} 56. Kf3 {[%clk 0:00:02]}  Qxe7 {[%clk 0:00:16]} 0-1


[Site "https://www.chess.com"]

[Event "Titled Tuesday Blitz April 18 Early 2023"]
[White "KorolDimitriy75"]
[Black "Ciuffoletti, Paolo"]
[BlackFideId "807630"]
[WhiteElo "2390"]
[BlackElo "2143"]
[Result "0-1"]
[Round "06"]
[TimeControl "180+2"]
[Date "2023.04.18"]
[WhiteClock "0:00:10"]
[BlackClock "0:00:49"]

1. d4 {[%clk 0:02:04]}  d5 {[%clk 0:02:50]} 2. c4 {[%clk 0:02:03]}  c6 {[%clk 0:02:49]} 3. Nc3 {[%clk 0:02:03]}  Nf6 {[%clk 0:02:49]} 4. e3 {[%clk 0:02:03]}  a6 {[%clk 0:02:48]} 5. Nf3 {[%clk 0:02:03]}  b5 {[%clk 0:02:48]} 6. b3 {[%clk 0:02:02]}  Bg4 {[%clk 0:02:48]} 7. Be2 {[%clk 0:02:00]}  e6 {[%clk 0:02:48]} 8. O-O {[%clk 0:02:00]}  Nbd7 {[%clk 0:02:47]} 9. Bd2 {[%clk 0:01:57]}  Bd6 {[%clk 0:02:41]} 10. h3 {[%clk 0:01:55]}  Bh5 {[%clk 0:02:38]} 11. Rc1 {[%clk 0:01:37]}  O-O {[%clk 0:02:36]} 12. Re1 {[%clk 0:01:18]}  Qe7 {[%clk 0:02:30]} 13. cxd5 {[%clk 0:01:02]}  cxd5 {[%clk 0:02:25]} 14. a4 {[%clk 0:01:01]}  b4 {[%clk 0:02:13]} 15. Na2 {[%clk 0:01:00]}  a5 {[%clk 0:02:13]} 16. Rc6 {[%clk 0:00:55]}  e5 {[%clk 0:02:07]} 17. dxe5 {[%clk 0:00:52]}  Nxe5 {[%clk 0:02:01]} 18. Nxe5 {[%clk 0:00:49]}  Bxe2 {[%clk 0:02:00]} 19. Qxe2 {[%clk 0:00:45]}  Qxe5 {[%clk 0:01:51]} 20. g3 {[%clk 0:00:44]}  Rfc8 {[%clk 0:01:42]} 21. Rec1 {[%clk 0:00:33]}  Rxc6 {[%clk 0:01:40]} 22. Rxc6 {[%clk 0:00:33]}  Bf8 {[%clk 0:01:36]} 23. Nc1 {[%clk 0:00:24]}  Ne4 {[%clk 0:01:20]} 24. Be1 {[%clk 0:00:24]}  h5 {[%clk 0:01:15]} 25. h4 {[%clk 0:00:23]}  g6 {[%clk 0:01:13]} 26. Kg2 {[%clk 0:00:19]}  Bg7 {[%clk 0:01:04]} 27. Nd3 {[%clk 0:00:17]}  Qa1 {[%clk 0:01:00]} 28. Qc2 {[%clk 0:00:13]}  Bc3 {[%clk 0:00:56]} 29. Bxc3 {[%clk 0:00:12]}  bxc3 {[%clk 0:00:54]} 30. Nf4 {[%clk 0:00:12]}  Qb2 {[%clk 0:00:50]} 31. Qd3 {[%clk 0:00:11]}  Qxf2+ {[%clk 0:00:49]} 32. Kh1 {[%clk 0:00:10]}  Nxg3# {[%clk 0:00:49]} 0-1


[Site "https://www.chess.com"]

[Event "Titled Tuesday Blitz April 18 Early 2023"]
[White "Tuleyeva-Aketayeva, Dana"]
[Black "Szente Varga, Fruzsina"]
[WhiteFideId "13701932"]
[BlackFideId "712264"]
[WhiteElo "2030"]
[BlackElo "1994"]
[Result "1-0"]
[Round "06"]
[TimeControl "180+2"]
[Date "2023.04.18"]
[WhiteClock "0:00:41"]
[BlackClock "0:01:01"]

1. d4 {[%clk 0:03:00]}  Nf6 {[%clk 0:03:00]} 2. Nf3 {[%clk 0:02:59]}  g6 {[%clk 0:02:58]} 3. g3 {[%clk 0:02:59]}  Bg7 {[%clk 0:02:58]} 4. Bg2 {[%clk 0:02:59]}  d5 {[%clk 0:02:58]} 5. O-O {[%clk 0:03:00]}  O-O {[%clk 0:02:59]} 6. c4 {[%clk 0:03:00]}  dxc4 {[%clk 0:03:00]} 7. Ne5 {[%clk 0:02:59]}  Be6 {[%clk 0:02:59]} 8. Bxb7 {[%clk 0:02:57]}  Bd5 {[%clk 0:02:58]} 9. Bxa8 {[%clk 0:02:52]}  Bxa8 {[%clk 0:02:57]} 10. Nc3 {[%clk 0:02:49]}  Nc6 {[%clk 0:02:51]} 11. Nf3 {[%clk 0:02:45]}  Nd5 {[%clk 0:02:42]} 12. e4 {[%clk 0:02:36]}  Ndb4 {[%clk 0:02:39]} 13. Be3 {[%clk 0:02:34]}  Nd3 {[%clk 0:02:37]} 14. Qa4 {[%clk 0:02:13]}  Nxd4 {[%clk 0:02:03]} 15. Nxd4 {[%clk 0:02:12]}  Bxd4 {[%clk 0:02:03]} 16. Qxc4 {[%clk 0:02:10]}  Bxe3 {[%clk 0:02:02]} 17. fxe3 {[%clk 0:02:09]}  Ne5 {[%clk 0:02:02]} 18. Qd4 {[%clk 0:02:07]}  Ng4 {[%clk 0:01:53]} 19. Qxd8 {[%clk 0:02:03]}  Rxd8 {[%clk 0:01:54]} 20. Rfd1 {[%clk 0:01:47]}  Rb8 {[%clk 0:01:51]} 21. b3 {[%clk 0:01:34]}  Bc6 {[%clk 0:01:38]} 22. h3 {[%clk 0:01:24]}  Nxe3 {[%clk 0:01:36]} 23. Rd3 {[%clk 0:01:20]}  Nc2 {[%clk 0:01:37]} 24. Rc1 {[%clk 0:01:13]}  Nb4 {[%clk 0:01:35]} 25. Rd4 {[%clk 0:01:09]}  Be8 {[%clk 0:01:18]} 26. Nd5 {[%clk 0:00:44]}  Nxa2 {[%clk 0:01:04]} 27. Ra1 {[%clk 0:00:43]}  e6 {[%clk 0:01:03]} 28. Nf6+ {[%clk 0:00:41]}  Kg7 {[%clk 0:01:01]} 29. Nxe8+ {[%clk 0:00:41]} 1-0


[Site "https://www.chess.com"]